Cogmind - Beta 15 @@@ ROGUE MODE // 2025.07.02 @ 05:44:24 Player: pyroperro Result: Destroyed by H-88 Terminator with Heavy Machine Gun Performance ------------- Evolutions (9) 4500 Regions Visited (19) 3800 Robots Destroyed (98) 490 Value Destroyed (3749) 3749 Prototype IDs (31) 620 Alien Tech Used (0) 0 Bonus (2345) 2345 TOTAL SCORE: 15504 Bonus ------- High Alert Combat Kills 28 Follower Combat Kills 117 Entered Garrisons 400 Used RIF Installer 1000 Entered DSFs 500 Aligned with FarCom 300 Cogmind --------- Core Integrity 0/1600 Matter 289/300 Energy 92/100 System Corruption 9% Temperature Cool (0) Movement Core (50) Location -1/Access Parts ------- > --- POWER (2) -------- (None) > --- PROPULSION (8) --- (None) > --- UTILITY (11) ----- Relay Coupler [Grunt] (34) Relay Coupler [Specialist] (20) > --- WEAPON (4) ------- (None) > --- INVENTORY (5) ---- Improved Datajack Peak State ------------ > --- POWER ------------ Light Quantum Reactor > --- PROPULSION ------- Myomer Leg Myomer Leg Myomer Leg Biometal Leg Improved Thunder Leg Centrium Leg Centrium Leg Centrium Leg > --- UTILITY ---------- Heavy Armor Plating Heavy Armor Plating System Shield Relay Coupler [Grunt] Relay Coupler [Brawler] Relay Coupler [Duelist] Relay Coupler [Sentry] Relay Coupler [Specialist] Relay Coupler [Hunter] > --- WEAPON ----------- Quantum Rifle Enhanced Quantum Rifle Enhanced Nova Cannon Improved Datajack > --- INVENTORY -------- Light Quantum Reactor Heavy Armor Plating Quantum Rifle Heavy Pick [Rating: 142] Favorites ----------- Power Improved Ion Engine Engine Improved Ion Engine Power Core Light Nuclear Core Reactor Light Quantum Reactor Propulsion Advanced Treads Treads Advanced Treads Leg Myomer Leg Wheel Armored Huge Wheel Hover Unit Antigrav System Flight Unit Xenon Bombardment Thruster Utility Hacking Suite Device Seismic Detector Storage Large Storage Unit Processor Advanced Visual Processing Unit Hackware Hacking Suite Protection Light Armor Plating Weapon Longsword +1 Energy Gun Quantum Rifle Energy Cannon Enhanced Nova Cannon Ballistic Gun Light Assault Rifle Ballistic Cannon Light Cannon Launcher Mini Grenade Launcher Impact Weapon Hammer Slashing Weapon Longsword +1 Piercing Weapon Heavy Pick Special Melee Weapon Improved Datajack Build | -11 -10 -10 -9 -9 -9 -8 -8 -7 -6 -6 -5 -4 -4 -3 -3 -3 -2 -2 -1 ------- Run | Yrd Mat Min Mat Min Exi Min Mat Fac Fac Ext Fac Fac DSF Res Gar Res Res Gar Acc Slots Evolved 18 | . . . 2 . . . 2 2 2 . 2 2 . 2 . . 2 . 2 Power 1 | . . . . . . . . . . . . . . . . . . . 1 Propulsion 6 | . . . 1 . . . . 1 . . 2 . . 1 . . 1 . . Utility 9 | . . . 1 . . . 2 1 2 . . 1 . . . . 1 . 1 Weapon 2 | . . . . . . . . . . . . 1 . 1 . . . . . Parts Attached 138 | 7 6 . 12 . 1 2 20 9 8 3 20 . 5 4 . 11 2 18 10 Power 17 | 1 2 . 1 . . . 3 . 3 . 2 . 2 . . 1 . 1 1 Engine 8 | 1 2 . 1 . . . 2 . 1 . . . 1 . . . . . . Core 6 | . . . . . . . 1 . 2 . 2 . 1 . . . . . . Reactor 3 | . . . . . . . . . . . . . . . . 1 . 1 1 Propulsion 49 | 2 1 . 7 . . . 2 4 1 2 12 . . 1 . 6 2 6 3 Treads 11 | 2 . . 6 . . . 2 . . . . . . . . 1 . . . Leg 10 | . . . . . . . . . . . . . . . . . 2 5 3 Wheel 3 | . 1 . . . . . . . . . 2 . . . . . . . . Hover 9 | . . . . . . . . . . . 7 . . . . 2 . . . Flight 16 | . . . 1 . . . . 4 1 2 3 . . 1 . 3 . 1 . Utility 38 | 2 . . 3 . . . 8 4 4 . 5 . 1 . . 1 . 8 2 Device 4 | 1 . . . . . . 1 . . . 1 . . . . 1 . . . Storage 4 | 1 . . 1 . . . . 1 . . . . 1 . . . . . . Processor 5 | . . . . . . . 2 . 1 . 2 . . . . . . . . Hackware 13 | . . . . . . . . 3 2 . 1 . . . . . . 6 1 Protection 12 | . . . 2 . . . 5 . 1 . 1 . . . . . . 2 1 Artifact . | . . . . . . . . . . . . . . . . . . . . Weapon 34 | 2 3 . 1 . 1 2 7 1 . 1 1 . 2 3 . 3 . 3 4 Energy Gun 7 | . . . 1 . . . 2 . . . . . . . . . . 1 3 Energy Cannon 2 | . . . . . . . 1 . . . . . . . . . . 1 . Ballistic Gun 4 | 2 . . . . . . 1 . . . . . . . . . . 1 . Ballistic Cannon 4 | . 2 . . . 1 . 1 . . . . . . . . . . . . Launcher 8 | . . . . . . 1 2 1 . 1 . . . 1 . 2 . . . Special Weapon . | . . . . . . . . . . . . . . . . . . . . Impact Weapon 1 | . 1 . . . . . . . . . . . . . . . . . . Slashing Weapon 2 | . . . . . . 1 . . . . 1 . . . . . . . . Piercing Weapon 4 | . . . . . . . . . . . . . 2 1 . 1 . . . Special Melee Weapon 2 | . . . . . . . . . . . . . . 1 . . . . 1 Unidentified Prototypes 8 | . . . 2 . . . 3 . . . 1 . . 2 . . . . . Parts Lost 79 | . . . 1 . . 2 7 . 1 9 5 . 14 . 4 13 . . 23 Power 6 | . . . . . . . 1 . . 1 . . 1 . 1 . . . 2 Propulsion 33 | . . . 1 . . . 2 . . 5 3 . 5 . 2 7 . . 8 Utility 26 | . . . . . . 2 4 . 1 2 2 . 5 . 1 1 . . 8 Weapon 14 | . . . . . . . . . . 1 . . 3 . . 5 . . 5 Highest Loss Streak 15 | . . . 1 . . 1 4 . 1 6 2 . 12 . 4 7 . . 15 To Critical Strikes 1 | . . . . . . . . . . . . . . . . 1 . . . Average Backups 8 | 3 4 4 10 15 14 13 14 10 9 9 9 9 8 5 5 4 1 3 3 Power . | . . . . 1 1 1 . 1 1 1 . 1 1 . . . 1 . . Propulsion 3 | . . 1 3 6 6 6 4 3 3 3 4 5 4 1 1 . . 1 . Utility 1 | . . . 2 4 4 4 4 2 2 1 1 1 1 1 1 . . . . Weapon 2 | 1 2 3 3 4 3 2 3 2 1 2 1 1 1 1 2 2 . 1 1 Tool/Special . | . . . . . . . . . . . . . . . . . . . . Unused Backups 19 | . 1 . . . 1 . 2 2 2 . 5 . . . . 1 . 5 . Power 2 | . . . . . . . . . 1 . . . . . . . . 1 . Propulsion 10 | . . . . . . . 2 1 1 . 3 . . . . . . 3 . Utility 1 | . . . . . . . . . . . . . . . . 1 . . . Weapon 6 | . 1 . . . 1 . . 1 . . 2 . . . . . . 1 . Tool/Special . | . . . . . . . . . . . . . . . . . . . . Average Slot Usage (%) 77 | . 99 100 98 100 100 99 88 96 94 78 77 78 67 28 26 20 9 52 72 Engine 5 | . 14 14 11 11 11 11 4 7 4 . 4 5 3 3 2 . . . . Treads 12 | . 23 14 31 33 33 33 26 3 . . . . . . . . . . . Leg 5 | . . . . . . . . . . . . . . . . . 5 24 24 Wheel 1 | . 4 14 . . . . . . . . 7 . . 1 . . . . . Hover 1 | . . . . . . . . . . . 5 26 21 1 . 2 . . . Flight 3 | . . . . . . . . 25 26 25 3 . . 10 15 10 . . . Device 3 | . 13 14 11 11 11 . 2 . . . 3 5 4 . . 1 . . . Storage 6 | . 14 14 11 11 11 11 9 7 6 6 5 5 5 1 . . . . . Processor 4 | . . . . . . . 8 15 13 13 12 10 4 . . . . . . Hackware 7 | . . . . . . . . 18 27 25 13 10 9 4 2 . . 5 25 Protection 7 | . . . 10 11 11 21 17 3 . . 6 5 3 . . . . 5 6 Ballistic Gun 2 | . 25 . . . . . 2 . . . . . . . . . . 1 . Ballistic Cannon 4 | . . 28 20 22 22 . 2 . . . . . . . . . . . . Launcher 1 | . . . . . . 10 3 7 6 1 . . . . . . . . . Slashing Weapon 3 | . . . . . . 10 6 7 6 1 9 10 6 . . . . . . Piercing Weapon 1 | . . . . . . . . . . . . . 5 4 4 3 4 4 1 Peak Build Rating 142 | 7 7 7 19 19 20 27 34 48 58 59 87 77 82 42 42 57 23 122 142 Average Rating 46 | 5 6 7 13 19 19 26 28 44 54 45 63 77 69 34 35 39 17 87 114 On Entrance 32 | . 7 7 7 19 19 20 25 31 48 56 22 77 77 28 42 24 5 23 122 Naked Turns 1 | . . . . . . . . . . . . . . . . 1 . . . Heaviest Build 76 | 11 15 15 41 41 41 41 46 35 24 24 43 40 48 19 19 24 3 73 76 Greatest Support 146 | 40 40 10 66 66 66 66 66 62 24 24 66 44 55 28 19 35 58 133 146 Greatest Overweight (x) 5 | . 1 1 3 . . . . 5 . 1 1 . 1 . . 1 . 1 . Average Overweight (x) . | . . 1 . . . . . . . . . . . . . . . . . Largest Inventory Capacity 15 | 8 8 8 15 15 15 15 15 15 10 10 10 10 10 10 5 5 5 5 5 Average Capacity 10 | 7 8 8 14 15 15 15 15 10 10 10 10 10 10 6 5 5 5 5 5 Most Carried 15 | 4 6 4 15 15 15 14 15 15 10 10 10 10 10 7 5 5 2 5 5 Average Carried 8 | 3 4 4 10 15 14 13 14 10 9 9 9 10 9 5 5 4 1 3 3 Final Capacity 15 | 8 8 8 15 15 15 15 15 10 10 10 10 10 10 5 5 5 5 5 5 Final Carried 15 | 4 4 4 15 15 14 13 15 10 10 9 10 10 7 5 5 1 2 5 1 Class Distribution -------------------- 46% | Mutant 16% | Scavenger-Mutant 7% | Hacker-Gladiator 6% | Hacker-Sprinter 6% | Hacker-Mutant 4% | Scavenger-Gladiator 3% | Scavenger-Tank Dominant Class ---------------- Mutant | -10/Materials Mutant | -10/Mines Scavenger-Mutant | -9/Materials Mutant | -9/Mines Mutant | -9/Exiles Mutant | -8/Mines Mutant | -8/Materials Hacker-Sprinter | -7/Factory Hacker-Sprinter | -6/Factory Hacker-Mutant | -6/Extension Hacker-Gladiator | -5/Factory Hacker-Gladiator | -4/Factory Scavenger-Gladiator | -4/DSF Mutant | -3/Research Mutant | -3/Garrison Mutant | -3/Research Mutant | -2/Research Scavenger-Mutant | -2/Garrison Bothacker-Tank | -1/Access Resources | -11 -10 -10 -9 -9 -9 -8 -8 -7 -6 -6 -5 -4 -4 -3 -3 -3 -2 -2 -1 ----------- Run | Yrd Mat Min Mat Min Exi Min Mat Fac Fac Ext Fac Fac DSF Res Gar Res Res Gar Acc Matter Collected 3128 | 298 160 33 350 47 . . 519 23 231 427 174 . 59 . . 305 . 405 97 Remotely . | . . . . . . . . . . . . . . . . . . . . Salvage Created 3412 | 106 262 . 353 . . 8 978 23 335 348 204 . . . . 365 . 405 25 Parts 196 | 9 16 . 26 . . 4 61 2 15 16 17 . . 2 . 12 . 12 4 Haulers Intercepted 4 | . . . 1 . . . 3 . . . . . . . . . . . . Recyclers Shooed 4 | . . . . . . . 2 . 1 . 1 . . . . . . . . Parts Field Recycled . | . . . . . . . . . . . . . . . . . . . . Retrieved Matter . | . . . . . . . . . . . . . . . . . . . . Parts Self-Destructed . | . . . . . . . . . . . . . . . . . . . . Prevented . | . . . . . . . . . . . . . . . . . . . . Kills | -11 -10 -10 -9 -9 -9 -8 -8 -7 -6 -6 -5 -4 -4 -3 -3 -3 -2 -2 -1 ------- Run | Yrd Mat Min Mat Min Exi Min Mat Fac Fac Ext Fac Fac DSF Res Gar Res Res Gar Acc Combat Hostiles Destroyed 66 | . 9 . 7 . . 4 23 . 5 3 4 . . . . 9 . 2 . Melee 19 | . . . . . . . 9 . 2 2 4 . . . . . . 2 . Guns 11 | . 9 . . . . . 2 . . . . . . . . . . . . Cannons 13 | . . . 7 . . . 6 . . . . . . . . . . . . AOE 23 | . . . . . . 4 6 . 3 1 . . . . . 9 . . . Classes Destroyed 16 | 1 4 . 2 . . . 4 . 1 1 1 . . . . 2 . . . Worker 4 | . . . . . . . 3 . . . . . . . . 1 . . . Builder 2 | . . . . . . . . . . 1 . . . 1 . . . . . Tunneler 6 | 4 . . . . . . . . 2 . . . . . . . . . . Hauler 4 | . . . 1 . . . 3 . . . . . . . . . . . . Recycler 3 | . . . . . . . . . 1 1 . . . . . 1 . . . Operator 8 | . 1 . 1 . . . 1 1 1 . 2 . . . . . . . 1 Drone 1 | . . . . . . . . . . . . . . . . 1 . . . Watcher 6 | . 2 . 3 . . . . . . 1 . . . . . . . . . Swarmer 19 | . 6 . . . . 4 4 . 3 . 2 . . . . . . . . Cutter 4 | . . . . . . . 4 . . . . . . . . . . . . Grunt 23 | . 3 . 2 . . . 5 . 2 2 . . . . . 7 . 2 . Duelist 1 | . . . . . . . . . . . . . . . . 1 . . . Sentry 12 | . . . 5 . . . 6 . . 1 . . . . . . . . . Specialist 2 | . . . . . . . 2 . . . . . . . . . . . . Hunter 2 | . . . . . . . 2 . . . . . . . . . . . . Programmer 2 | . . . . . . . . . . . 2 . . . . . . . . Best Kill Streak 6 | 2 6 . 2 . . 4 5 1 4 3 2 . . 1 . 5 . 1 1 Combat Bots Only 6 | . 6 . 2 . . 4 4 . 3 2 2 . . . . 5 . 1 . Max Kills in Single Turn 3 | 1 1 . 1 . . 2 2 1 2 1 1 . . 1 . 3 . 1 1 Gunslinging . | . . . . . . . . . . . . . . . . . . . . Exploded 3 | . . . . . . 2 2 . 2 1 . . . . . 3 . . . Melee 1 | . . . . . . . 1 . 1 1 1 . . . . . . 1 . Uniques/NPCs Destroyed . | . . . . . . . . . . . . . . . . . . . . Combat | -11 -10 -10 -9 -9 -9 -8 -8 -7 -6 -6 -5 -4 -4 -3 -3 -3 -2 -2 -1 -------- Run | Yrd Mat Min Mat Min Exi Min Mat Fac Fac Ext Fac Fac DSF Res Gar Res Res Gar Acc Hostile Shots Fired 1400 | . 59 . 21 16 . 21 116 10 22 210 40 . 218 12 47 174 4 . 430 Missed 620 | . 17 . 6 8 . 4 35 5 12 129 11 . 99 8 22 86 3 . 175 Hits 780 | . 42 . 15 8 . 17 81 5 10 81 29 . 119 4 25 88 1 . 255 Melee 11 | . . . . . . . 9 . . . . . . . . . . . 2 Projectile 769 | . 42 . 15 8 . 17 72 5 10 81 29 . 119 4 25 88 1 . 253 Critical Strikes 28 | . . . 2 . . . 4 . 1 . 2 . 1 . 3 5 . . 10 Damage Taken 14040 | . 354 . 219 120 . 251 1455 39 144 924 593 . 1488 113 459 2200 24 135 5522 Core 3985 | . 50 . 14 . . 38 159 . 64 359 77 . 350 29 258 973 . . 1614 Absorbed by Shields 383 | . . . . . . . . . . 26 78 . 279 . . . . . . Regen/Repaired (Parts) 91 | . 13 . . . . . 65 . . . 13 . . . . . . . . Core Remaining (%) 75 | 100 . 80 . . . 87 71 100 . 50 92 . 69 . . 3 . 100 . Volleys Fired 148 | 14 43 . 30 . . 3 26 . 3 7 . . 1 3 . 8 . . 10 Largest 4 | 2 2 . 2 . . 2 2 . 1 2 . . 1 1 . 1 . . 4 Hottest 373 | 40 40 . 60 . . 60 97 . 36 72 . . 36 60 . 60 . . 373 Shots Fired 271 | 28 85 . 58 . . 6 46 . 3 9 . . 1 3 . 8 . . 24 Gun 137 | 28 85 . . . . . 8 . . . . . . . . . . . 16 Cannon 95 | . . . 58 . . 3 26 . . . . . . . . . . . 8 Launcher 39 | . . . . . . 3 12 . 3 9 . . 1 3 . 8 . . . Special . | . . . . . . . . . . . . . . . . . . . . Kinetic 198 | 28 85 . 58 . . 3 24 . . . . . . . . . . . . Thermal 34 | . . . . . . . 10 . . . . . . . . . . . 24 Explosive 39 | . . . . . . 3 12 . 3 9 . . 1 3 . 8 . . . Electromagnetic . | . . . . . . . . . . . . . . . . . . . . Robot Hit Streak 21 | 20 12 . 5 . . 2 10 . 11 17 . . . 20 . 21 . . 3 Robot Miss Streak 4 | 1 4 . 3 . . 1 3 . . . . . . . . 2 . . 4 Penetration Max 1 | . . . . . . . 1 . . . . . . . . . . . . Secondary Targets . | . . . . . . . . . . . . . . . . . . . . Shots Hit Robots 252 | 24 45 . 32 . . 2 55 2 14 17 19 . . 3 . 7 . 19 13 Core Hits 149 | 9 23 . 16 . . 3 31 1 9 8 4 . . 3 . 26 . 13 3 Critical Kills 2 | . . . . . . . 2 . . . . . . . . . . . . Critical Parts Destroyed . | . . . . . . . . . . . . . . . . . . . . Critical Strikes 19 | . . . 3 . . . 7 . 2 . 4 . . . . . . 3 . Destroy 2 | . . . . . . . 2 . . . . . . . . . . . . Blast 4 | . . . 3 . . . 1 . . . . . . . . . . . . Sever 10 | . . . . . . . 4 . 2 . 4 . . . . . . . . Impale 3 | . . . . . . . . . . . . . . . . . . 3 . Melee Attacks 173 | . 3 . 2 . . 1 39 5 19 12 32 . . 6 2 10 2 27 13 Impact 5 | . 3 . 2 . . . . . . . . . . . . . . . . Slashing 108 | . . . . . . 1 39 5 19 12 32 . . . . . . . . Piercing 50 | . . . . . . . . . . . . . . 6 2 10 2 27 3 Sneak Attacks 21 | . . . 1 . . . 4 . 4 2 4 . . . . 2 . 4 . Combat Hostiles . | . . . . . . . . . . . . . . . . . . . . Follow-up Attacks 2 | . . . . . . . . . . . 2 . . . . . . . . Damage Inflicted 11432 | 180 408 . 548 . . 390 2936 125 1070 774 1135 . . 170 . 2018 . 1388 290 Guns 860 | 180 375 . . . . . 100 . . . . . . . . . . . 205 Cannons 1046 | . . . 508 . . . 455 . . . . . . . . . . . 83 Explosions 3587 | . . . . . . 390 786 . 248 128 . . . 170 . 1865 . . . Melee 5937 | . 33 . 40 . . . 1595 125 822 646 1135 . . . . 153 . 1388 . Ramming 2 | . . . . . . . . . . . . . . . . . . . 2 Kinetic 1434 | 180 375 . 508 . . . 371 . . . . . . . . . . . . Thermal 472 | . . . . . . . 184 . . . . . . . . . . . 288 Explosive 3587 | . . . . . . 390 786 . 248 128 . . . 170 . 1865 . . . Electromagnetic . | . . . . . . . . . . . . . . . . . . . . Impact 73 | . 33 . 40 . . . . . . . . . . . . . . . . Slashing 4323 | . . . . . . . 1595 125 822 646 1135 . . . . . . . . Piercing 1541 | . . . . . . . . . . . . . . . . 153 . 1388 . Highest Corruption 9 | . 1 1 . . . . 1 . . . . . . 3 3 9 . . 7 Average Corruption 1 | . 1 1 . . . . 1 . . . . . . 3 3 3 . . 5 Corruption Purged . | . . . . . . . . . . . . . . . . . . . . Corruption Blocked . | . . . . . . . . . . . . . . . . . . . . Effects 23 | . 3 . . . . . 10 . . . . . . 1 1 7 . . 1 Message Errors 8 | . . . . . . . 6 . . . . . . . . 2 . . . Matter Fused 7 | . 2 . . . . . 1 . . . . . . . 1 2 . . 1 Heat Flow Errors 2 | . 1 . . . . . . . . . . . . . . 1 . . . Energy Discharges 1 | . . . . . . . . . . . . . . . . 1 . . . Data Loss (minor) 2 | . . . . . . . 1 . . . . . . 1 . . . . . Data Loss (major) 2 | . . . . . . . 1 . . . . . . . . 1 . . . Misfires 1 | . . . . . . . 1 . . . . . . . . . . . . Overload Shots . | . . . . . . . . . . . . . . . . . . . . Overflow Damage 952 | . 23 . 18 . . 58 216 15 148 101 220 . . . . 13 . 140 . Projectiles 3 | . . . . . . . 3 . . . . . . . . . . . . Explosions 102 | . . . . . . 58 . . 31 . . . . . . 13 . . . Melee 847 | . 23 . 18 . . . 213 15 117 101 220 . . . . . . 140 . Knockbacks 4 | . . . 2 . . . 2 . . . . . . . . . . . . Impact . | . . . . . . . . . . . . . . . . . . . . Kinetic 4 | . . . 2 . . . 2 . . . . . . . . . . . . Secondary . | . . . . . . . . . . . . . . . . . . . . Self-Inflicted Damage 549 | . . . . . . 78 169 . . 73 . . 40 . . 52 . 137 . Shots 12 | . . . . . . 3 4 . . 2 . . 1 . . 1 . 1 . Rammed . | . . . . . . . . . . . . . . . . . . . . Targets Rammed 1 | . . . . . . . . . . . . . . . . . . . 1 Kicked 1 | . . . . . . . . . . . . . . . . . . . 1 Crushed . | . . . . . . . . . . . . . . . . . . . . Highest Temperature 617 | . 149 . 30 . . 9 219 4 12 114 68 . 28 5 . 199 . . 617 Average Temperature 65 | . 42 . 5 . . 5 88 4 7 22 24 . 18 3 . 47 . . 198 Received Heat Transfer 1543 | . 54 . 90 27 . 36 387 12 66 210 . . 297 27 75 127 . . 135 Effects 5 | . . . . . . . 2 . . . . . . . . . . . 3 Shutdowns 1 | . . . . . . . . . . . . . . . . . . . 1 Interference 2 | . . . . . . . 2 . . . . . . . . . . . . Damage (minor) 1 | . . . . . . . . . . . . . . . . . . . 1 Damage (major) 1 | . . . . . . . . . . . . . . . . . . . 1 Siege Activations . | . . . . . . . . . . . . . . . . . . . . Martial Activations . | . . . . . . . . . . . . . . . . . . . . Shielding Activations . | . . . . . . . . . . . . . . . . . . . . Robots Disrupted . | . . . . . . . . . . . . . . . . . . . . Combat Hostiles . | . . . . . . . . . . . . . . . . . . . . Robots Corrupted . | . . . . . . . . . . . . . . . . . . . . Combat Hostiles . | . . . . . . . . . . . . . . . . . . . . Parts Fried . | . . . . . . . . . . . . . . . . . . . . Impact Corruptions 2 | . 1 . 1 . . . . . . . . . . . . . . . . Robots Melted . | . . . . . . . . . . . . . . . . . . . . Combat Hostiles . | . . . . . . . . . . . . . . . . . . . . Parts Melted . | . . . . . . . . . . . . . . . . . . . . Heat Transferred 629 | . . . . . . . 296 . . . . . . . . . . . 333 Parts Sabotaged . | . . . . . . . . . . . . . . . . . . . . Parts Stolen . | . . . . . . . . . . . . . . . . . . . . Parts Stripped . | . . . . . . . . . . . . . . . . . . . . Power Chain Reactions . | . . . . . . . . . . . . . . . . . . . . Alert | -11 -10 -10 -9 -9 -9 -8 -8 -7 -6 -6 -5 -4 -4 -3 -3 -3 -2 -2 -1 ------- Run | Yrd Mat Min Mat Min Exi Min Mat Fac Fac Ext Fac Fac DSF Res Gar Res Res Gar Acc Maximum Alert Level 3 | . . . . . . . 2 1 . . . . . . . 1 . 3 2 Low Security (%) 71 | 100 100 100 100 100 . 100 59 64 100 100 100 100 100 100 100 86 100 10 . Level 1 14 | . . . . . . . 29 35 . . . . . . . 13 . 43 23 Level 2 10 | . . . . . . . 10 . . . . . . . . . . 25 76 Level 3 3 | . . . . . . . . . . . . . . . . . . 20 . Level 4 . | . . . . . . . . . . . . . . . . . . . . Level 5 . | . . . . . . . . . . . . . . . . . . . . High Security . | . . . . . . . . . . . . . . . . . . . . Max Security . | . . . . . . . . . . . . . . . . . . . . Peak Influence 1059 | 5 180 41 83 3 . 97 529 240 136 111 50 4 16 62 138 343 177 1059 635 Initial 635 | . . 41 3 3 . . . 240 56 66 . 4 2 . 51 77 177 73 635 Average 155 | . 77 30 27 . . 16 169 180 38 47 9 4 8 15 52 119 129 445 468 Influence Increases 4519 | 20 318 . 297 . . 107 975 15 200 301 290 . 46 94 127 574 21 986 148 Destroy 0b10 Robot/C 1360 | . 180 . 140 . . 80 460 . 100 120 80 . . . . 160 . 40 . Destroy 0b10 Robot/NC 169 | 20 15 . 25 . . . 35 5 15 15 5 . . 5 . 15 . 10 4 Destroy Leader 320 | . 34 . 68 . . 10 136 . 10 12 20 . . . . 30 . . . Allied During Kill 22 | . . . . . . . . . . 22 . . . . . . . . . Successful Hack 214 | . 42 . 18 . . . 14 7 18 20 32 . . 24 12 27 . . . Disable Machine 120 | . . . 45 . . . 15 . . 15 . . . 15 . 30 . . . Anti-Garrison Action 802 | . . . . . . . . . . . . . . . . . . 802 . Destroy Structure 597 | . 2 . 1 . . 17 90 3 27 37 18 . 16 50 10 162 6 134 24 Partial Spotted 135 | . . . . . . . 60 . 30 . 15 . . . . 15 15 . . Lose Combat Pursuer 780 | . 45 . . . . . 165 . . 60 120 . 30 . 105 135 . . 120 Influence Decreases 4260 | 20 211 96 300 8 . 107 446 429 179 437 279 7 50 26 57 397 238 25 948 Entered New Map 1171 | . . 66 8 5 . . . 289 59 70 . 7 2 . 17 61 138 25 424 Time Decay 2357 | 20 211 30 292 3 . 97 376 140 110 250 239 . . 26 . 169 100 . 294 Lost Part 592 | . . . . . . 10 70 . 10 37 40 . 48 . 40 107 . . 230 Lost Ally 140 | . . . . . . . . . . 80 . . . . . 60 . . . Squads Dispatched 47 | . 5 . 2 1 . . 9 4 1 . 9 . 2 2 . 7 . . 5 Investigation 22 | . 4 . 1 1 . . 4 3 1 . 3 . . 2 . 3 . . . Extermination 7 | . . . . . . . . 1 . . 3 . . . . 1 . . 2 Reinforcement 13 | . 1 . 1 . . . 4 . . . 3 . 2 . . . . . 2 Assault 2 | . . . . . . . 1 . . . . . . . . . . . 1 Garrison 3 | . . . . . . . . . . . . . . . . 3 . . . Intercept . | . . . . . . . . . . . . . . . . . . . . Searches Triggered . | . . . . . . . . . . . . . . . . . . . . Construction Impeded 1 | . . . . . . . 1 . . . . . . . . . . . . Haulers Reinforced 2 | . . . . . . . . . . . 1 . . . . . . . 1 Active Scanning Responses . | . . . . . . . . . . . . . . . . . . . . Cargo Convoy Interrupts 1 | . . . . . . . . . . . 1 . . . . . . . . Stealth | -11 -10 -10 -9 -9 -9 -8 -8 -7 -6 -6 -5 -4 -4 -3 -3 -3 -2 -2 -1 --------- Run | Yrd Mat Min Mat Min Exi Min Mat Fac Fac Ext Fac Fac DSF Res Gar Res Res Gar Acc Distress Signals 19 | . 2 . 2 . . . 8 . . 1 1 . . . . 2 1 . 2 Communications Jammed . | . . . . . . . . . . . . . . . . . . . . Distress Signals . | . . . . . . . . . . . . . . . . . . . . Times Spotted 236 | . 23 . 15 2 . 7 38 5 6 16 24 . 12 2 15 32 3 . 36 Peak Tracking Total 23 | . 5 . 4 2 . 4 9 4 3 6 6 . 10 4 15 15 2 . 23 Tactical Retreats 36 | . 3 . . . . . 9 . . 4 7 . 2 . 1 5 . . 5 Traps | -11 -10 -10 -9 -9 -9 -8 -8 -7 -6 -6 -5 -4 -4 -3 -3 -3 -2 -2 -1 ------- Run | Yrd Mat Min Mat Min Exi Min Mat Fac Fac Ext Fac Fac DSF Res Gar Res Res Gar Acc Traps Triggered 15 | . 2 . . . . . 3 . . 3 1 . 5 . . 1 . . . Indirectly . | . . . . . . . . . . . . . . . . . . . . Trap Hack Attempts . | . . . . . . . . . . . . . . . . . . . . Triggered . | . . . . . . . . . . . . . . . . . . . . Disarmed . | . . . . . . . . . . . . . . . . . . . . Reprogrammed . | . . . . . . . . . . . . . . . . . . . . Reused . | . . . . . . . . . . . . . . . . . . . . Traps Extracted . | . . . . . . . . . . . . . . . . . . . . Installed . | . . . . . . . . . . . . . . . . . . . . Triggered . | . . . . . . . . . . . . . . . . . . . . Machines | -11 -10 -10 -9 -9 -9 -8 -8 -7 -6 -6 -5 -4 -4 -3 -3 -3 -2 -2 -1 ---------- Run | Yrd Mat Min Mat Min Exi Min Mat Fac Fac Ext Fac Fac DSF Res Gar Res Res Gar Acc Machines Disabled 13 | . . . 3 . . . 1 . . 1 . . . 1 . 2 . 5 . Max in Single Turn 2 | . . . 1 . . . 1 . . 1 . . . 1 . 1 . 2 . Garrison Access 1 | . . . . . . . . . . . . . . . . . . . 1 Garrison Relay 3 | . . . . . . . . . . . . . . . . . . 3 . Phase Generator 1 | . . . . . . . . . . . . . . . . . . 1 . Machines Repaired . | . . . . . . . . . . . . . . . . . . . . Machines Dismantled . | . . . . . . . . . . . . . . . . . . . . Machines Sabotaged . | . . . . . . . . . . . . . . . . . . . . Overloaded Fab Kills . | . . . . . . . . . . . . . . . . . . . . Hacking | -11 -10 -10 -9 -9 -9 -8 -8 -7 -6 -6 -5 -4 -4 -3 -3 -3 -2 -2 -1 --------- Run | Yrd Mat Min Mat Min Exi Min Mat Fac Fac Ext Fac Fac DSF Res Gar Res Res Gar Acc Machines Accessed 61 | . 6 . 9 1 1 . 7 3 4 7 8 1 . 3 1 5 1 2 2 Terminals 42 | . 5 . 8 1 . . 3 2 3 7 5 1 . 1 1 2 . 2 1 Fabricators 1 | . . . . . . . . 1 . . . . . . . . . . . Repair Stations 5 | . 1 . . . . . 2 . 1 . 1 . . . . . . . . Recycling Units 5 | . . . . . . . 1 . . . 2 . . 1 . 1 . . . Scanalyzers 2 | . . . 1 . . . 1 . . . . . . . . . . . . Garrison Access 5 | . . . . . . . . . . . . . . 1 . 2 1 . 1 Total Hacks 146 | . 18 . 27 3 1 . 24 9 10 9 18 1 . 5 2 9 1 4 5 Successful 68 | . 6 . 8 2 1 . 15 6 5 7 7 1 . 2 1 2 1 . 4 Failed 78 | . 12 . 19 1 . . 9 3 5 2 11 . . 3 1 7 . 4 1 Catastrophic 15 | . 1 . 5 . . . . 2 2 . 1 . . 2 . 1 . 1 . Database Lockouts . | . . . . . . . . . . . . . . . . . . . . Manual 64 | . 15 . 17 . 1 . 8 5 7 . 6 . . 1 . 3 . . 1 Terminals 97 | . 15 . 19 3 . . 13 6 8 9 9 1 . 1 2 4 . 4 3 Fabricators 3 | . . . . . . . . 3 . . . . . . . . . . . Repair Stations 13 | . 3 . . . . . 6 . 2 . 2 . . . . . . . . Recycling Units 13 | . . . . . . . 2 . . . 7 . . 2 . 2 . . . Scanalyzers 11 | . . . 8 . . . 3 . . . . . . . . . . . . Garrison Access 8 | . . . . . . . . . . . . . . 2 . 3 1 . 2 Terminal Hacks 35 | . 2 . 3 2 1 . 6 3 3 7 3 1 . 1 1 . . . 2 Record 8 | . . . 1 . . . 4 . . . 1 . . . . . . . 2 Part Schematic 1 | . . . . . . . 1 . . . . . . . . . . . . Robot Analysis 1 | . 1 . . . . . . . . . . . . . . . . . . Open Door 8 | . . . . . . . . . 1 7 . . . . . . . . . Open DSF 1 | . . . . . . . . . . . . 1 . . . . . . . Level Access Points 2 | . . . . . . . . 1 1 . . . . . . . . . . Branch Access Points 2 | . . . 1 . . . . . 1 . . . . . . . . . . Terminal Index 2 | . . . . . . . . . . . 1 . . 1 . . . . . Repair Station Index 1 | . . . . . . . . 1 . . . . . . . . . . . Dispatch Records 1 | . . . . 1 . . . . . . . . . . . . . . . Hauler Manifests 5 | . 1 . 1 . . . 1 1 . . 1 . . . . . . . . Zone Layout 1 | . . . . 1 . . . . . . . . . . . . . . . Garrison Registry 1 | . . . . . . . . . . . . . . . 1 . . . . Proto ID Catalog 1 | . . . . . 1 . . . . . . . . . . . . . . Fabricator Hacks 3 | . . . . . . . . 3 . . . . . . . . . . . Network Status 1 | . . . . . . . . 1 . . . . . . . . . . . Load Schematic 1 | . . . . . . . . 1 . . . . . . . . . . . Build 1 | . . . . . . . . 1 . . . . . . . . . . . Repair Station Hacks 9 | . 2 . . . . . 4 . 1 . 2 . . . . . . . . Scan Component 5 | . 1 . . . . . 2 . 1 . 1 . . . . . . . . Repair 4 | . 1 . . . . . 2 . . . 1 . . . . . . . . Recycling Unit Hacks 2 | . . . . . . . 1 . . . 1 . . . . . . . . Retrieve Components 2 | . . . . . . . 1 . . . 1 . . . . . . . . Scanalyzer 6 | . . . 4 . . . 2 . . . . . . . . . . . . Insert Component 3 | . . . 2 . . . 1 . . . . . . . . . . . . Analyze 3 | . . . 2 . . . 1 . . . . . . . . . . . . Garrison Access Hacks 5 | . . . . . . . . . . . . . . 1 . 1 1 . 2 Unlock Access 4 | . . . . . . . . . . . . . . 1 . 1 1 . 1 Seal Access 1 | . . . . . . . . . . . . . . . . . . . 1 Unauthorized Hacks 8 | . 2 . 1 . . . 2 . 1 . 1 . . . . 1 . . . Terminals 7 | . 2 . 1 . . . 2 . 1 . 1 . . . . . . . . Assimilate 3 | . 1 . . . . . . . 1 . 1 . . . . . . . . Botnet 1 | . . . . . . . 1 . . . . . . . . . . . . Operators 3 | . 1 . 1 . . . 1 . . . . . . . . . . . . Fabricators . | . . . . . . . . . . . . . . . . . . . . Repair Stations . | . . . . . . . . . . . . . . . . . . . . Recycling Units . | . . . . . . . . . . . . . . . . . . . . Scanalyzers . | . . . . . . . . . . . . . . . . . . . . Garrison Access 1 | . . . . . . . . . . . . . . . . 1 . . . Reprogram 1 | . . . . . . . . . . . . . . . . 1 . . . Data Cores Recovered 2 | . . . . . . . . 1 . . . . . . . . . . 1 Used 2 | . . . . . . . . 1 . . . . . . . . . . 1 Hacking Detections 44 | . 6 . 6 1 . . 6 3 3 1 4 1 . 3 1 5 1 2 1 Full Trace Events 26 | . 4 . 4 1 . . 6 3 1 . 3 . . 2 . 2 . . . Feedback Events 3 | . 1 . . . . . 1 . 1 . . . . . . . . . . Corruption 2 | . 1 . . . . . 1 . . . . . . . . . . . . Hackware Fried 1 | . . . . . . . . . 1 . . . . . . . . . . Feedback Blocked . | . . . . . . . . . . . . . . . . . . . . Robot Schematics Acquired . | . . . . . . . . . . . . . . . . . . . . Robots Built . | . . . . . . . . . . . . . . . . . . . . Authchips . | . . . . . . . . . . . . . . . . . . . . Time . | . . . . . . . . . . . . . . . . . . . . Total Robot Build Rating . | . . . . . . . . . . . . . . . . . . . . Part Schematics Acquired 4 | . . . 2 . . . 2 . . . . . . . . . . . . Parts Built . | . . . . . . . . . . . . . . . . . . . . Authchips . | . . . . . . . . . . . . . . . . . . . . Time 73 | . . . . . . . . 73 . . . . . . . . . . . Total Part Build Rating . | . . . . . . . . . . . . . . . . . . . . Parts Repaired 3 | . 1 . . . . . 1 . . . 1 . . . . . . . . Time 145 | . 13 . . . . . 76 . . . 56 . . . . . . . . Parts Recycled . | . . . . . . . . . . . . . . . . . . . . Recycled Matter . | . . . . . . . . . . . . . . . . . . . . Retrieved Matter . | . . . . . . . . . . . . . . . . . . . . Retrieved Components 10 | . . . . . . . 9 . . . 1 . . . . . . . . Parts Scanalyzed 3 | . . . 2 . . . 1 . . . . . . . . . . . . Part Schematics Acquired 3 | . . . 2 . . . 1 . . . . . . . . . . . . Parts Damaged . | . . . . . . . . . . . . . . . . . . . . Bothacking | -11 -10 -10 -9 -9 -9 -8 -8 -7 -6 -6 -5 -4 -4 -3 -3 -3 -2 -2 -1 ------------ Run | Yrd Mat Min Mat Min Exi Min Mat Fac Fac Ext Fac Fac DSF Res Gar Res Res Gar Acc Used RIF Installer 2 | . . . . . . . . . . . . . . . 1 . . 1 . Threat Obfuscator 1 | . . . . . . . . . . . . . . . . . . 1 . Robots Hacked 4 | . . . . . . . . . . . . . . . . . . . 4 Non-combat . | . . . . . . . . . . . . . . . . . . . . Combat 4 | . . . . . . . . . . . . . . . . . . . 4 Robot Hacks Applied 5 | . . . . . . . . . . . . . . . . . . . 5 parse_system 2 | . . . . . . . . . . . . . . . . . . . 2 go_dormant 1 | . . . . . . . . . . . . . . . . . . . 1 overwrite_iff 2 | . . . . . . . . . . . . . . . . . . . 2 Relay Couplers Released 12 | . . . . . . . . . . . 1 . . . . . . 11 . Machine Destruction 11 | . . . . . . . . . . . . . . . . . . 11 . Programmers 1 | . . . . . . . . . . . 1 . . . . . . . . Attached 6 | . . . . . . . . . . . . . . . . . . 6 . Fabnet Peak Effective % . | . . . . . . . . . . . . . . . . . . . . Robots Rewired . | . . . . . . . . . . . . . . . . . . . . Allies Hacked . | . . . . . . . . . . . . . . . . . . . . Hacks Repelled . | . . . . . . . . . . . . . . . . . . . . Allies | -11 -10 -10 -9 -9 -9 -8 -8 -7 -6 -6 -5 -4 -4 -3 -3 -3 -2 -2 -1 -------- Run | Yrd Mat Min Mat Min Exi Min Mat Fac Fac Ext Fac Fac DSF Res Gar Res Res Gar Acc Total Allies 16 | . . . . . . . . . 1 8 1 . . . . 4 . . 2 Largest Group 4 | . . . . . . . . . 1 4 . . . . . 4 . . 2 Highest-Rated Group 224 | . . . . . . . . . 10 224 . . . . . 188 . . 138 Highest-Rated Ally 159 | . . . . . . . . . 10 159 . . . . . 47 . . 69 Total Orders . | . . . . . . . . . . . . . . . . . . . . Ally Attacks 30 | . . . . . . . . . . 20 . . . . . 9 . . 1 Total Damage 765 | . . . . . . . . . . 435 . . . . . 269 . . 61 Kills 3 | . . . . . . . . . . 3 . . . . . . . . . Allies Corrupted . | . . . . . . . . . . . . . . . . . . . . Allies Melted 1 | . . . . . . . . . . 1 . . . . . . . . . Intel | -11 -10 -10 -9 -9 -9 -8 -8 -7 -6 -6 -5 -4 -4 -3 -3 -3 -2 -2 -1 ------- Run | Yrd Mat Min Mat Min Exi Min Mat Fac Fac Ext Fac Fac DSF Res Gar Res Res Gar Acc Active Infowar (turns) 6289 | 23 697 60 1009 301 377 3 1289 285 231 661 1342 2 9 . . . . . . Optics 3424 | . . . . . . . 894 285 231 661 1342 2 9 . . . . . . Terrain 395 | . . . . . . . 395 . . . . . . . . . . . . Seismic 2470 | 23 697 60 1009 301 377 3 . . . . . . . . . . . . . Robot Analysis Total 1 | . 1 . . . . . . . . . . . . . . . . . . Derelict Logs Recovered 2 | . . 1 . 1 . . . . . . . . . . . . . . . Drone Launches . | . . . . . . . . . . . . . . . . . . . . Drone Recoveries . | . . . . . . . . . . . . . . . . . . . . Exploration | -11 -10 -10 -9 -9 -9 -8 -8 -7 -6 -6 -5 -4 -4 -3 -3 -3 -2 -2 -1 ------------- Run | Yrd Mat Min Mat Min Exi Min Mat Fac Fac Ext Fac Fac DSF Res Gar Res Res Gar Acc Turns Passed 10748 | 268 710 60 1009 301 377 583 1648 285 231 661 1342 2 153 117 73 368 218 1698 644 Spaces Moved 7752 | 129 374 64 544 208 257 20 771 223 371 792 837 3 160 133 195 718 199 1300 454 Core 73 | 5 . . . . . . . . . . . . . . . 18 44 . 6 Treads 2139 | 124 221 . 518 208 257 20 771 17 . . . . . . . 3 . . . Legs 1903 | . . . . . . . . . . . . . . . . . 155 1300 448 Wheels 792 | . 153 64 26 . . . . . . . 513 . 17 19 . . . . . Hover 399 | . . . . . . . . . . . 250 3 143 . . 3 . . . Flight 2446 | . . . . . . . . 206 371 792 74 . . 114 195 694 . . . Fastest Speed 28 | 50 95 95 95 145 145 145 145 31 31 28 34 50 46 34 34 35 50 116 50 Average Speed 95 | 155 133 95 156 145 145 145 147 43 31 34 78 50 66 43 34 40 104 120 116 Slowest Speed 440 | 160 160 95 240 145 145 145 155 440 31 120 115 50 115 100 35 145 120 180 120 Overloaded Moves 15 | . . . . . . . . . . 15 . . . . . . . . . Propulsion Burnouts . | . . . . . . . . . . . . . . . . . . . . Robots Hopped 4 | . . . . . . . . 3 . . . . . . . 1 . . . Potential Cave-ins 5 | . . . . . . . . . . 5 . . . . . . . . . Cave-ins Triggered . | . . . . . . . . . . . . . . . . . . . . Exploration Rate (%) 36 | 9 58 28 62 54 61 8 69 7 9 61 26 1 90 5 40 32 8 87 20 Regions Visited 19 Branch Regions 5 Pre-discovered Areas 3 | . . 2 . 1 . . . . . . . . . . . . . . . Known Exits Taken 7 | . . . 1 . . . . 1 1 1 . 1 . 1 . . 1 . . Unknown Exits Taken 9 | 1 1 1 . 1 1 1 1 . . . 1 . . . . 1 . . . Scrap Searched 4 | . . 1 . 3 . . . . . . . . . . . . . . . Spaces Dug 90 | . 2 . 1 . . 1 8 3 6 17 9 . 9 6 . 23 2 1 2 Terrain Destroyed 491 | . 2 . 1 . . 40 104 3 31 91 9 . 9 28 . 90 2 73 8 Melee 48 | . 2 . 1 . . 1 8 3 6 . 9 . . 6 . 7 2 1 2 Projectile 9 | . . . . . . . 3 . . . . . . . . . . . 6 AOE 434 | . . . . . . 39 93 . 25 91 . . 9 22 . 83 . 72 . Terrain Rammed . | . . . . . . . . . . . . . . . . . . . . Walls Destroyed . | . . . . . . . . . . . . . . . . . . . . Machines Disabled . | . . . . . . . . . . . . . . . . . . . . Actions | -11 -10 -10 -9 -9 -9 -8 -8 -7 -6 -6 -5 -4 -4 -3 -3 -3 -2 -2 -1 --------- Run | Yrd Mat Min Mat Min Exi Min Mat Fac Fac Ext Fac Fac DSF Res Gar Res Res Gar Acc Total 10579 | 170 510 63 638 207 262 566 1191 405 465 1159 1484 2 206 179 196 764 204 1368 540 Wait 2076 | 17 74 . 29 . . 540 291 154 48 284 557 . 11 19 . 5 . . 47 Move 7727 | 128 373 63 543 207 256 19 770 216 370 791 836 2 159 133 194 715 199 1299 454 Hop 4 | . . . . . . . . 3 . . . . . . . 1 . . . Pick Up 68 | 4 3 . 7 . 2 . 14 5 3 1 12 . 1 1 . 1 1 13 . Fast Attach 95 | 7 3 . 7 . . . 15 5 4 . 17 . 4 2 . 9 2 14 6 Attach 60 | . 2 . 3 . . 1 6 3 5 4 11 . 3 7 . 7 . 4 4 Detach 32 | . 1 . 5 . . . 5 . 3 3 5 . . 5 . 4 . . 1 Swap 41 | . 4 . 7 . 1 2 11 1 3 3 4 . 1 . . 1 . 1 2 Drop 83 | . 4 . 5 . 3 . 14 13 7 1 14 . 4 3 . 3 . 10 2 Fire 148 | 14 43 . 30 . . 3 26 . 3 7 . . 1 3 . 8 . . 10 Melee 169 | . 3 . 2 . . 1 39 5 19 12 28 . . 6 2 10 2 27 13 Ram . | . . . . . . . . . . . . . . . . . . . . Kick 1 | . . . . . . . . . . . . . . . . . . . 1 Crush . | . . . . . . . . . . . . . . . . . . . . Escape Stasis 75 | . . . . . . . . . . 53 . . 22 . . . . . . Rewire . | . . . . . . . . . . . . . . . . . . . . Trap . | . . . . . . . . . . . . . . . . . . . . Miscellaneous . | . . . . . . . . . . . . . . . . . . . . Route ------- -11/Scrapyard -10/Materials -10/Mines -9/Materials (discovered 4 exits: *Mat / *Min / *Sto x2) -9/Mines (discovered 2 exits: *Mat / *Exi) -9/Exiles -8/Mines -8/Materials (discovered 2 exits: *Fac x2) -7/Factory (discovered 4 exits: *Fac x4) -6/Factory (discovered 8 exits: *Fac x4 / Low x2 / *Ext x2) -6/Extension -5/Factory -4/Factory -4/DSF -3/Research -3/Garrison (discovered 3 exits: *Res x3) -3/Research (discovered 2 exits: *Res / Gar) -2/Research -2/Garrison (discovered 3 exits: *Acc x3) -1/Access History --------- Turn | Location | Event 9 | -11/Scrapyard | Discovered new exit (range 14) 269 | -11/Scrapyard | Entered Materials 308 | -10/Materials | Build established: Mutant 530 | -10/Materials | Discovered new exit (range 11) 796 | -10/Materials | Repaired Seismic Detector 979 | -10/Materials | Entered Mines 1022 | -10/Mines | Learned location of Storage (-9) 1027 | -10/Mines | Learned location of Mines (-8) 1031 | -10/Mines | Discovered new exit (range 7) 1039 | -10/Mines | Entered Materials 1039 | -9/Materials | Evolved 2 slots: Propulsion x1, Utility x1 1137 | -9/Materials | Discovered new exit (range 12) 1354 | -9/Materials | Build established: Scavenger-Mutant 1378 | -9/Materials | Discovered new exit (range 16) 1691 | -9/Materials | Discovered new exit (range 7) 1784 | -9/Materials | Discovered new exit (range 14) 1925 | -9/Materials | Identified exit to Mines 1925 | -9/Materials | Identified exit to Storage 2035 | -9/Materials | Build established: Mutant 2048 | -9/Materials | Entered Mines 2169 | -9/Mines | Discovered new exit (range 10) 2343 | -9/Mines | Deemed a non-threat by the Exiles lab entrance 2343 | -9/Mines | Discovered new exit (range 5) 2349 | -9/Mines | Entered Exiles 2384 | -9/Exiles | Met 8R-AWN 2409 | -9/Exiles | Met EX-HEX 2464 | -9/Exiles | Met EX-BIN 2486 | -9/Exiles | Aligned with FarCom system 2487 | -9/Exiles | Given EX-Vault access code 2522 | -9/Exiles | Opened EX-Vault 2530 | -9/Exiles | Found Longsword +1 2560 | -9/Exiles | Warned to stay clear of 0b10 Research branches 2600 | -9/Exiles | Met EX-DEC 2651 | -9/Exiles | Discovered new exit (range 12) 2726 | -9/Exiles | Left Exiles lab with Longsword +1 2726 | -9/Exiles | Entered Mines 3303 | -8/Mines | Discovered new exit (range 5) 3309 | -8/Mines | Entered Materials 3309 | -8/Materials | Evolved 2 slots: Utility x2 3715 | -8/Materials | Discovered new exit (range 16) 3928 | -8/Materials | Build established: Assassin 4313 | -8/Materials | Lost 4 parts (1p1n2u) 4338 | -8/Materials | Build established: Mutant 4342 | -8/Materials | Discovered new exit (range 11) 4639 | -8/Materials | Repaired Surge Thruster 4784 | -8/Materials | Lost 3 parts (1n2u) 4909 | -8/Materials | First assault squad dispatched 4957 | -8/Materials | Entered Factory 4957 | -7/Factory | Evolved 2 slots: Propulsion x1, Utility x1 5030 | -7/Factory | Identified exit to Factory 5242 | -7/Factory | Entered another Factory area 5242 | -6/Factory | Evolved 2 slots: Utility x2 5296 | -6/Factory | Identified exit to Factory 5296 | -6/Factory | Identified exit to Lower Caves 5296 | -6/Factory | Identified exit to Extension 5296 | -6/Factory | Hacking Suite fried by hacking feedback 5320 | -6/Factory | Build established: Hacker-Sprinter 5473 | -6/Factory | Entered Extension 5477 | -6/Extension | Disrupted transfer network 5526 | -6/Extension | Rescued a captive Derelict 5526 | -6/Extension | Rescued a captive Derelict 5551 | -6/Extension | Rescued a captive Derelict 5649 | -6/Extension | Rescued a captive Derelict 5650 | -6/Extension | Rescued a captive Derelict 5655 | -6/Extension | Spotted B-75 Beast 5663 | -6/Extension | Rescued a captive Derelict 5665 | -6/Extension | Rescued a captive Derelict 5763 | -6/Extension | Rescued a captive Derelict 5772 | -6/Extension | Rescued A7 5984 | -6/Extension | Build established: Hacker-Mutant 6058 | -6/Extension | Spotted B-75 Beast 6070 | -6/Extension | Discovered exit to Factory (range 3) 6109 | -6/Extension | Lost 3 allies 6134 | -6/Extension | Entered Factory 6134 | -5/Factory | Evolved 2 slots: Propulsion x2 6165 | -5/Factory | Lost 6 parts (4n2u) 6648 | -5/Factory | Build established: Hacker-Gladiator 6948 | -5/Factory | Repaired Field Propulsion Drive 7003 | -5/Factory | Cargo convoy interrupted 7397 | -5/Factory | Discovered new exit (range 19) 7423 | -5/Factory | Build established: Scavenger-Gladiator 7476 | -5/Factory | Entered another Factory area 7476 | -4/Factory | Evolved 2 slots: Utility x1, Weapon x1 7478 | -4/Factory | Identified exit to DSF 7478 | -4/Factory | Entered DSF 7479 | -4/DSF | Joined Warlord attack on 0b10 via DSF 7502 | -4/DSF | Discovered new exit (range 16) 7503 | -4/DSF | Additional patrols routed to DSF 7518 | -4/DSF | Lost 3 parts (1n2u) 7554 | -4/DSF | Lost 11 allies 7631 | -4/DSF | Entered Research 7631 | -3/Research | Evolved 2 slots: Propulsion x1, Weapon x1 7656 | -3/Research | Lost 12 parts (1p4n4u3w) 7686 | -3/Research | Found Prototype Launcher 7686 | -3/Research | Identified Hellfire Missile Launcher 7748 | -3/Research | Identified exit to Garrison 7748 | -3/Research | Entered Garrison 7768 | -3/Garrison | Discovered new exit (range 84) 7768 | -3/Garrison | Discovered new exit (range 56) 7768 | -3/Garrison | Discovered new exit (range 80) 7786 | -3/Garrison | Spotted B-86 Titan 7788 | -3/Garrison | Triggered checkpoint 7788 | -3/Garrison | Triggered checkpoint 7810 | -3/Garrison | Triggered checkpoint 7816 | -3/Garrison | Installed Relay Interface Framework 7821 | -3/Garrison | Entered Research 7827 | -3/Research | Lost 4 parts (1p2n1u) 7897 | -3/Research | Build established: Mutant 7925 | -3/Research | Garrison activated, responded to threat 7964 | -3/Research | Lost 3 allies 7975 | -3/Research | Identified exit to Garrison 7991 | -3/Research | Found Fusion Bomb Launcher 7994 | -3/Research | Lost 4 parts (3n1w) 8012 | -3/Research | Found Fusion Bomb Launcher 8141 | -3/Research | Core integrity fell below 50% 8172 | -3/Research | Core integrity fell below 20% 8174 | -3/Research | Discovered new exit (range 15) 8189 | -3/Research | Entered another Research area 8189 | -2/Research | Evolved 2 slots: Propulsion x1, Utility x1 8212 | -2/Research | Lost 7 parts (4n3w) 8407 | -2/Research | Identified exit to Garrison 8407 | -2/Research | Entered Garrison 8407 | -2/Garrison | Discovered recently destroyed garrison 8653 | -2/Garrison | Discovered new exit (range 14) 8868 | -2/Garrison | Discovered new exit (range 14) 9022 | -2/Garrison | Build established: Scavenger-Mutant 9040 | -2/Garrison | Discovered new exit (range 13) 9089 | -2/Garrison | Expanded RIF knowledge: Threat Obfuscation 9627 | -2/Garrison | Garrison Relay disabled 9759 | -2/Garrison | Phase Generator disabled 9803 | -2/Garrison | Garrison Relay disabled 9871 | -2/Garrison | Garrison Relay disabled 10105 | -2/Garrison | Entered Access 10105 | -1/Access | Evolved 2 slots: Power x1, Utility x1 10347 | -1/Access | Identified exit to Garrison 10355 | -1/Access | First assault squad dispatched 10589 | -1/Access | Lost 3 parts (1n2u) 10638 | -1/Access | Spotted B-99 Colossus 10690 | -1/Access | Lost 15 parts (2p6n3u4w) 10730 | -1/Access | Core integrity fell below 50% 10743 | -1/Access | Core integrity fell below 20% 10749 | -1/Access | Destroyed by H-88 Terminator with Heavy Machine Gun Last Messages --------------- 10738_ Penetrated by Slug. 10739_ Jacked L-61 Swordsman... >>parse_system Reading system data... 10739_ Centrium Leg severed. 10741_ P-80 Master resets L-61 Swordsman, system corruption cleaned. 10741_ Jacked P-80 Master... >>parse_system Reading system data... 10741_ Penetrated by Slug. 10742_ System corrupted: Matter fused (-10). 10742_ Relay Coupler [Sentry] destroyed. 10744_ P-80 Master resets L-61 Swordsman, system corruption cleaned. 10746_ Slug penetrates Anti-Orbital Battery. 10749_ Relay Coupler [Brawler] destroyed. 10749_ System Shield destroyed. 10749_ Penetrated by Slug. [Achievement: Just Browsing] Map ----- +----------------------------------------------------+ | | | ???????????????#############?????????????????????? | | ???????????????# #?????????########????? | | ???????????????# #?????????# ###### | | ???????????????# #?????????# [ # | | ???????????????# #?????????# # | | ???????????????? #?????????# # | | ?????????????????? ??????????# # | | ???????????????????? ????######### # | | ???????????????????###+###???# # * # | | ????????????#??????# ##### # # | | ??????????### ###### # # | | ??????????+ i " + # ] | | ??????????###### ###h ggggghh # # | | ???????????????# #?# hhh #####! # # * | | ???????????????# #?###h###???# # # | | ???????????????# #???#h#?????##### #########"##### | | ???????????????# #???# #?????????# | | ???????????????# #???#g#?????????# | | ???????????????#+#####h####??????# | | ???????????????# g #??????# | | ???????????????# Y #??????# | | ???????????????# #??????# | | ???????????????# #??##### | | ???????????????# #? ######### | | ???????????????# @# #???????? | | ???????????????# hp pl# #???????? | | ???????????????# "" =+ #???????? | | ???????????????# """ p# ????????? | | ???????????????# """" # ????????? | | ???????????????# h """" #? ?????????? | | ???????????????# """" #??#+##+#### #?????????? | | ???????????????# """" #??????????????????????? | | ???????????????# "" #??????????????????????? | | ???????????????# "" #??????????????????????? | | ???????????????############??????????????????????? | | ?????????????????????????????????????????????????? | | ?????????????????????????????????????????????????? | | ?????????????????????????????????????????????????? | | ?????????????????????????????????????????????????? | | ?????????????????????????????????????????????????? | | ?????????????????????????????????????????????????? | | ?????????????????????????????????????????????????? | | ?????????????????????????????????????????????????? | | ?????????????????????????????????????????????????? | | ?????????????????????????????????????????????????? | | ?????????????????????????????????????????????????? | | ?????????????????????????????????????????????????? | | ?????????????????????????????????????????????????? | | ?????????????????????????????????????????????????? | +----------------------------------------------------+ Best States ------------- Heat Dissipation 52 Energy Generation 35 Energy Capacity 340 Matter Stores 300 Matter Capacity 300 Sight Range 20 Terrain Scan Range 16 Terrain Scan Density 10 Armor Coverage 1200 Evasion (%) 72 Melee Accuracy 13 Recoil Reduction 3 Offensive Hacking 30 Defensive Hacking 20 Relay Coupler Types 6 Relay Coupler Value 163 Item Schematics ----------------- Hacking Suite | -9/Materials | Scanalyzed Mni. Grenade Launcher | -9/Materials | Scanalyzed Imp. Flight Unit | -8/Materials | Scanalyzed System Shield | -8/Materials | Hacked Robot Schematics ------------------ None Fabricated ------------ Nothing Repaired ---------- Seismic Detector | 35% | -10/Materials Surge Thruster | 7% | -8/Materials Field Propulsion Drive | 56% | -5/Factory Alien Tech Used ----------------- None Achievements -------------- Close Call Just Browsing Prison Break Universal Adapter Challenges ------------ None Game ------ Seed HelicalLightHarness Manual? 0 Play Time 02:24:35 Cumulative 19.2 hours Start 2025.07.02 @ 00:41:19 End 2025.07.02 @ 05:44:24 Sessions 11 Manual Loads 0 Difficulty Rogue Special Mode None Game No. 17 Rogue 17 Adventurer 0 Explorer 0 Win Type - Total 1 Types 1/0/0/0/0/0/0/0/0/0 Lore% 16 Gallery% 25 Achievement% 27 Wizard Run 0 Options --------- Layout 2 ASCII 0 Keyboard 0 Movement Mouse Keybinds 0 Fullscreen 1 Font 24/Smallcaps Map View 50x44 Zoom Use 0% Tactical HUD 1 Map Filters NONE Filters NONE Steam 1 RUN: e729c3c9-734c-4e61-9964-b3e362ac415a